bitfinex/quotes_SOLUSD_20250930
["timestamp","ask_amount","ask_price","bid_price","bid_amount"]
[1759231245905,0.7,206.55,206.51,19.14793034]
[1759231246403,2.2545184,206.57,206.52,0.71]
[1759231246609,0.7,206.56,206.51,19.14793034]
[1759231247109,27.89528024,206.58,206.52,0.71]
[1759231247307,0.7,206.57,206.52,0.71]
[1759231248308,0.7,206.57,206.51,18.43793034]
[1759231248517,0.7,206.57,206.53,4.84191158]
[1759231248698,0.7,206.57,206.53,5.55191158]
[1759231251701,27.8952779,206.58,206.53,4.84191158]
[1759231251904,0.7,206.57,206.53,4.84191158]
[1759231252105,0.7,206.56,206.53,4.84191158]
[1759231253610,0.7,206.56,206.52,5.55210243]
[1759231254900,5.54121894,206.56,206.52,0.71]
[1759231255207,0.7,206.55,206.5,52.17815559]
[1759231255408,0.7,206.55,206.51,0.71]
[1759231255610,4.84121894,206.56,206.5,52.17815559]
[1759231255804,4.84121894,206.56,206.52,0.71]
[1759231256014,5.54121894,206.56,206.52,0.71]
[1759231256232,5.54121894,206.56,206.52,5.55212957]
[1759231256429,2.2545184,206.57,206.52,5.55212957]
[1759231256430,20.8,206.58,206.53,0.71]
[1759231256794,0.7,206.58,206.54,0.71]
[1759231257102,4.84075882,206.58,206.54,0.71]
[1759231257300,2.2545184,206.56,206.5,47.31559401]
[1759231257512,0.7,206.55,206.5,47.31559401]
[1759231257831,0.7,206.54,206.5,47.31559401]
[1759231258004,0.7,206.54,206.5,48.02559401]
[1759231258723,0.7,206.54,206.5,52.86802919]
[1759231258932,5.54138598,206.56,206.51,0.71]
[1759231259111,5.54138598,206.56,206.5,52.15802919]
[1759231259306,0.7,206.55,206.5,33.72]
[1759231259497,0.7,206.54,206.5,39.27257688]
[1759231259897,0.7,206.54,206.51,0.71]
[1759231260111,5.54138598,206.56,206.52,0.71]
[1759231260717,5.54138598,206.56,206.5,38.56257688]
[1759231260916,5.54138598,206.56,206.51,5.55223079]
[1759231261304,0.7,206.55,206.51,5.55223079]
[1759231261640,0.7,206.55,206.51,0.71]
[1759231263128,0.7,206.55,206.5,38.56258082]
[1759231263129,0.7,206.54,206.5,39.27258082]
[1759231264033,0.7,206.54,206.51,0.71]
[1759231264737,0.7,206.56,206.51,5.55237401]
[1759231264936,0.7,206.56,206.52,0.71]
[1759231265418,0.7,206.55,206.51,5.55237401]
[1759231265826,5.5410387,206.57,206.52,0.71]
[1759231266739,0.7,206.56,206.52,0.71]
[1759231267044,0.7,206.58,206.53,0.71]
[1759231267245,0.7,206.58,206.54,0.71]
[1759231267549,0.7,206.6,206.55,0.71]
[1759231267841,0.7,206.59,206.55,0.71]
[1759231268741,2.9545184,206.59,206.55,0.71]
[1759231269128,0.7,206.58,206.53,4.84191158]
[1759231269331,0.7,206.57,206.53,5.55191158]
[1759231269642,0.7,206.57,206.53,4.84191158]
[1759231269843,2.2545184,206.58,206.54,0.71]
[1759231270140,2.9545184,206.59,206.54,0.71]
[1759231270529,2.9545184,206.59,206.55,0.71]
[1759231270739,0.7,206.58,206.53,17.65669054]
[1759231270937,0.7,206.58,206.54,0.71]
[1759231271330,0.7,206.58,206.54,5.55147789]
[1759231273140,2.2545184,206.59,206.55,0.69]
[1759231273573,2.2545184,206.59,206.54,13.59559401]
[1759231273741,2.2545184,206.59,206.56,0.69]
[1759231273940,2.2545184,206.59,206.54,33.72]
[1759231274268,5.56004156,206.61,206.55,0.69]
[1759231274571,2.2545184,206.6,206.55,0.69]
[1759231274865,0.72,206.62,206.57,13.59559401]
[1759231275167,2.9745184,206.62,206.58,5.53073966]
[1759231276266,0.72,206.61,206.58,4.84073966]
[1759231276656,2.9745184,206.6,206.57,13.59559401]
[1759231276857,2.9745184,206.6,206.57,18.4365324]
[1759231277251,2.2545184,206.6,206.57,19.1565324]
[1759231277451,2.2545184,206.6,206.58,0.72]
[1759231277864,2.2545184,206.6,206.57,18.4365324]
[1759231278045,2.2545184,206.6,206.57,19.1565324]
[1759231280069,0.2,206.63,206.57,18.4365324]
[1759231280258,2.2545184,206.6,206.57,18.4365324]
[1759231280460,2.2545184,206.6,206.57,19.1565324]
[1759231280842,2.2545184,206.6,206.58,0.72]
[1759231281859,2.2545184,206.6,206.58,5.56070689]
[1759231283575,0.72,206.62,206.58,5.56070689]
[1759231283779,2.2545184,206.6,206.58,5.56070689]
[1759231285163,2.2545184,206.6,206.58,4.84070689]
[1759231285363,2.2545184,206.6,206.57,52.13652476]
[1759231285681,2.2545184,206.6,206.57,52.85652476]
[1759231286280,2.9745184,206.6,206.57,52.13652476]
[1759231287076,2.9745184,206.6,206.57,52.85652476]
[1759231288290,2.9745184,206.6,206.57,47.29559401]
[1759231288596,2.9745184,206.6,206.57,52.13653075]
[1759231288795,2.9745184,206.6,206.57,52.85653075]
[1759231289008,2.2545184,206.6,206.57,52.85653075]
[1759231289192,2.9745184,206.6,206.57,52.13653075]
[1759231289800,2.2545184,206.6,206.57,52.85653075]
[1759231290301,0.2,206.63,206.6,4.84027105]
[1759231290476,0.2,206.63,206.61,0.72]
[1759231290673,0.2,206.63,206.62,14.31559401]
[1759231292387,0.2,206.63,206.62,19.15539654]
[1759231296316,0.2,206.63,206.62,62.11136417]
[1759231296695,0.2,206.63,206.62,82.91136417]
[1759231300197,0.2,206.63,206.62,49.21136417]
[1759231300431,0.2,206.63,206.62,82.91136417]
[1759231301200,0.2,206.68,206.66,13.59559401]
[1759231301519,0.2,206.68,206.67,47.29559401]
[1759231301900,0.2,206.68,206.67,49.95550525]
[1759231302404,0.2,206.68,206.67,54.79413688]
[1759231302606,0.2,206.68,206.67,54.73413688]
[1759231310118,0.2,206.68,206.67,54.05413688]
[1759231311749,0.2,206.68,206.67,54.71413688]
[1759231312445,0.2,206.68,206.67,54.05413688]
[1759231312646,0.2,206.68,206.67,54.71413688]
[1759231313727,0.2,206.68,206.67,21.03413688]
[1759231314040,0.2,206.68,206.67,54.71413688]
[1759231315042,0.2,206.68,206.67,54.05413688]
[1759231315747,0.2,206.68,206.67,20.37413688]
[1759231315958,0.2,206.68,206.67,54.05413688]
[1759231322147,0.2,206.68,206.67,54.71413688]
[1759231322455,0.2,206.68,206.67,54.05413688]
[1759231322952,0.2,206.68,206.67,54.71413688]
[1759231324040,0.2,206.68,206.67,54.05413688]
[1759231327948,0.2,206.68,206.67,54.71413688]
[1759231328151,0.2,206.68,206.67,54.05413688]
[1759231329045,0.2,206.68,206.67,54.71413688]
[1759231329961,1e-08,206.68,206.67,54.71413688]
[1759231330139,1e-08,206.68,206.67,187.71413688]
[1759231333873,1e-08,206.68,206.67,54.71413688]
[1759231334082,0.2,206.75,206.71,34.39559401]
[1759231334255,0.87,206.81,206.73,13.59559401]
[1759231334456,0.87,206.81,206.75,13.59559401]
[1759231334781,0.87,206.78,206.75,47.27559401]
[1759231335478,0.87,206.78,206.75,49.21465889]
[1759231335777,0.87,206.76,206.75,49.21465889]
[1759231336075,2.3115459,206.76,206.75,52.11235338]
[1759231336491,0.87,206.76,206.75,66.37840246]
[1759231337155,2.3115459,206.76,206.75,66.37840246]
[1759231337772,2.3115459,206.76,206.75,52.11235338]
[1759231338178,0.88,206.76,206.75,52.11235338]
[1759231340256,0.88,206.76,206.75,66.98741668]
[1759231343087,2.3215459,206.76,206.75,52.11235338]
[1759231345205,2.3215459,206.76,206.72,1.93944095]
[1759231345371,1.4415459,206.74,206.73,47.25559401]
[1759231345692,2.1215459,206.74,206.73,47.25559401]
[1759231346070,2.1215459,206.74,206.73,33.66]
[1759231348515,2.1215459,206.74,206.73,38.4972273]
[1759231350309,2.93010343,206.74,206.73,38.4972273]
[1759231351280,0.2,206.76,206.73,38.4972273]
[1759231351515,2.25010343,206.74,206.73,52.09282131]
[1759231351681,2.93010343,206.74,206.73,52.09282131]
[1759231353404,2.45010343,206.76,206.73,64.18588956]
[1759231353593,3.13010343,206.76,206.73,64.18588956]
[1759231354110,0.68,206.75,206.73,64.18588956]
[1759231356186,0.2,206.76,206.74,13.59559401]
[1759231356386,0.2,206.76,206.75,33.68]
[1759231356684,2.45010343,206.76,206.75,33.68]
[1759231357092,0.2,206.76,206.75,33.68]
[1759231357791,0.2,206.76,206.75,38.51675937]
[1759231358801,0.88,206.76,206.75,38.51675937]
[1759231360116,3.13010343,206.76,206.75,38.51675937]
[1759231360409,0.2,206.76,206.75,52.11235338]
[1759231360614,0.2,206.76,206.75,52.77235338]
[1759231360819,0.2,206.76,206.75,54.71151226]
[1759231362203,0.2,206.76,206.75,54.05151226]
[1759231362419,0.88,206.76,206.75,52.11235338]
[1759231362622,0.88,206.76,206.75,52.13235338]
[1759231363217,0.2,206.76,206.75,52.13235338]
[1759231368331,0.2,206.76,206.75,52.85235338]
[1759231369623,0.2,206.76,206.75,52.13235338]
[1759231369825,0.2,206.76,206.75,18.43235338]
[1759231370005,0.2,206.76,206.75,52.11235338]
[1759231370537,0.2,206.76,206.75,18.43235338]
[1759231370711,0.2,206.76,206.75,52.11235338]
[1759231372646,0.2,206.76,206.75,18.43235338]
[1759231372947,0.2,206.76,206.75,52.11235338]
[1759231376847,0.88,206.76,206.75,52.11235338]
[1759231377152,0.88,206.76,206.74,4.83699235]
[1759231377153,3.13010343,206.76,206.74,4.83699235]
[1759231377324,0.2,206.76,206.75,33.68]
[1759231378034,0.88,206.76,206.75,33.68]
[1759231378457,3.13010343,206.76,206.75,33.68]
[1759231379044,3.13010343,206.76,206.72,18.43305531]
[1759231379276,2.25010343,206.73,206.72,18.43305531]
[1759231379570,2.93010343,206.73,206.72,52.11305531]
[1759231380678,2.93010343,206.73,206.72,38.5174613]
[1759231385369,2.93010343,206.73,206.72,33.68]
[1759231386278,2.93010343,206.73,206.71,33.68]
[1759231386497,2.93010343,206.72,206.67,13.59559401]
[1759231386658,2.25010343,206.68,206.64,13.59559401]
[1759231386863,2.25010343,206.65,206.61,4.84003678]
[1759231387085,2.25010343,206.64,206.62,33.7]
[1759231387262,2.25010343,206.64,206.63,13.59559401]
[1759231387467,2.93010343,206.64,206.63,13.59559401]
[1759231387678,2.93010343,206.64,206.62,33.7]
[1759231387878,2.93010343,206.63,206.62,33.7]
[1759231389083,2.25010343,206.63,206.62,38.53980253]
[1759231389694,2.93010343,206.63,206.62,38.53980253]
[1759231390366,2.25010343,206.63,206.62,38.53980253]
[1759231390766,2.93010343,206.63,206.62,38.53980253]
[1759231392166,2.93010343,206.63,206.58,13.59559401]
[1759231392376,2.25010343,206.6,206.59,33.7]
[1759231393275,2.25010343,206.6,206.59,38.54050534]
[1759231393570,2.96010343,206.6,206.59,33.7]
[1759231393771,2.96010343,206.6,206.54,0.2]
[1759231393971,2.25010343,206.56,206.55,38.58144274]
[1759231394385,2.96010343,206.56,206.55,33.74]
[1759231396259,2.96010343,206.56,206.54,5.04166659]
[1759231396260,2.96010343,206.56,206.54,0.2]
[1759231396464,2.25010343,206.55,206.54,0.2]
[1759231396878,2.92010343,206.55,206.54,0.2]
[1759231399392,23.72010343,206.55,206.54,0.2]
[1759231401603,21.47,206.55,206.54,0.2]
[1759231401808,23.72010343,206.55,206.54,0.2]
[1759231403689,21.47,206.55,206.54,0.2]
[1759231403903,23.72010343,206.55,206.54,0.2]
[1759231404993,21.47,206.55,206.54,0.2]
[1759231405195,23.72010343,206.55,206.54,0.2]
[1759231406217,21.47,206.55,206.54,0.2]
[1759231406388,20.8,206.59,206.54,0.92]
[1759231406589,2.25010343,206.56,206.54,0.2]
[1759231406784,2.25010343,206.55,206.54,0.2]
[1759231406993,0.67,206.58,206.54,0.2]
[1759231407195,2.25010343,206.56,206.54,0.92]
[1759231408012,2.25010343,206.57,206.55,0.72]
[1759231408194,2.25010343,206.57,206.54,5.04167715]
[1759231408195,2.25010343,206.57,206.56,0.72]
[1759231408391,2.25010343,206.57,206.54,5.04167715]
[1759231408611,2.25010343,206.57,206.54,5.76167715]
[1759231408811,2.25010343,206.57,206.54,17.86587004]
[1759231409007,2.25010343,206.55,206.54,5.04167715]
[1759231409517,2.25010343,206.55,206.54,5.76167715]
[1759231410218,20.8,206.58,206.54,5.76167715]
[1759231410426,2.25010343,206.55,206.54,5.76167715]
[1759231410906,2.25010343,206.55,206.54,5.04167715]
[1759231411619,2.25010343,206.57,206.54,5.76167715]
[1759231411923,2.25010343,206.56,206.54,5.04167715]
[1759231412235,1.44262931,206.56,206.54,5.04167715]
[1759231412796,2.11262931,206.56,206.54,5.04167715]
[1759231413616,1.44262931,206.56,206.54,5.04167715]
[1759231414199,1.44262931,206.55,206.54,5.04167715]
[1759231414399,21.47,206.59,206.54,5.76167715]
[1759231414617,1.44262931,206.56,206.54,5.04167715]
[1759231414817,20.8,206.59,206.54,0.2]
[1759231414818,2.11262931,206.55,206.54,0.2]
[1759231416528,27.75407205,206.55,206.54,0.2]
[1759231420333,0.67,206.57,206.54,0.2]
[1759231420637,1.44262931,206.55,206.54,0.2]
[1759231421238,2.11262931,206.55,206.54,0.2]
[1759231422014,1.44262931,206.55,206.54,0.2]
[1759231424442,2.13262931,206.55,206.54,0.2]
[1759231425036,1.44262931,206.55,206.54,0.2]
[1759231425234,2.13262931,206.55,206.54,0.2]
[1759231431236,6.36740052,206.55,206.54,0.2]
[1759231431758,20.8,206.53,206.52,0.2]
[1759231431939,20.8,206.53,206.42,13.69559401]
[1759231431940,20.8,206.5,206.42,13.69559401]
[1759231432144,1.44262931,206.43,206.42,0.1]
[1759231432448,1.44262931,206.43,206.42,4.94449181]
[1759231432636,1.44262931,206.43,206.41,5.2997206]
[1759231433832,1.44262931,206.42,206.41,4.84472061]
[1759231434330,1.44262931,206.43,206.41,4.84472061]
[1759231435649,1.44262931,206.42,206.41,4.84472061]
[1759231436550,0.69,206.45,206.41,4.84472061]
[1759231436755,1.44262931,206.42,206.41,4.84472061]
[1759231437341,0.69,206.47,206.41,17.63653689]
[1759231437654,1.44262931,206.44,206.41,17.63653689]
[1759231438042,1.44262931,206.43,206.41,17.63653689]
[1759231438654,1.44262931,206.43,206.41,16.95653689]
[1759231440047,1.44262931,206.42,206.41,16.95653689]
[1759231440248,1.44262931,206.42,206.41,4.84472061]
[1759231441843,1.44262931,206.43,206.41,0.68]
[1759231442349,1.44262931,206.43,206.4,0.68]
[1759231443866,1.44262931,206.43,206.41,4.84472651]
[1759231444666,1.44262931,206.44,206.42,0.68]
[1759231444875,1.44262931,206.46,206.42,0.68]
[1759231445870,1.44262931,206.46,206.43,16.95489996]
[1759231446049,1.44262931,206.46,206.44,0.68]
[1759231446250,1.44262931,206.45,206.43,16.95489996]
[1759231446756,1.44262931,206.45,206.43,17.63489996]
[1759231446950,1.44262931,206.45,206.43,16.95489996]
[1759231447150,2.13262931,206.44,206.4,4.84472866]
[1759231447347,1.44262931,206.42,206.4,4.84472866]
[1759231447655,1.44262931,206.43,206.4,4.84472866]
[1759231447962,1.44262931,206.43,206.4,17.63713176]
[1759231448169,1.44262931,206.42,206.4,17.63713176]
[1759231449364,1.44262931,206.42,206.4,16.95713176]
[1759231450871,1.44262931,206.42,206.4,17.63713176]
[1759231452353,1.44262931,206.42,206.4,16.95713176]
[1759231453449,2.13262931,206.42,206.4,50.79713176]
[1759231453856,1.44262931,206.42,206.4,51.51713176]
[1759231454965,1.44262931,206.42,206.4,50.79713176]
[1759231455660,1.44262931,206.42,206.4,51.51713176]
[1759231456179,1.44262931,206.42,206.4,50.79713176]
[1759231456675,1.44262931,206.42,206.4,38.68472866]
[1759231456855,0.72,206.41,206.4,38.68472866]
[1759231457258,1.44262931,206.42,206.4,38.68472866]
[1759231457551,2.16262931,206.42,206.4,38.68472866]
[1759231457776,2.16262931,206.42,206.4,4.84472866]
[1759231458157,1.44262931,206.42,206.4,4.84472866]
[1759231459281,0.72,206.43,206.4,50.77713176]
[1759231459471,20.8,206.47,206.4,50.77713176]
[1759231459785,1.44262931,206.45,206.41,0.7]
[1759231459985,1.44262931,206.45,206.4,16.95713176]
[1759231459986,0.72,206.44,206.4,16.95713176]
[1759231460187,1.44262931,206.45,206.4,50.77713176]
[1759231460386,0.72,206.44,206.4,50.77713176]
[1759231460687,0.72,206.43,206.4,50.77713176]
[1759231461270,2.16262931,206.45,206.4,51.47713176]
[1759231461597,0.72,206.44,206.4,51.47713176]
[1759231462502,1.44262931,206.48,206.4,4.84472866]
[1759231462687,0.72,206.44,206.4,4.84472866]
[1759231462886,0.72,206.43,206.4,4.84472866]
[1759231463197,0.72,206.42,206.4,38.72472866]
[1759231466610,0.72,206.44,206.4,38.72472866]
[1759231466788,0.72,206.43,206.4,38.72472866]
[1759231468209,1.44262931,206.45,206.4,51.53713176]
[1759231468411,2.16262931,206.45,206.4,51.53713176]
[1759231468703,1.44262931,206.45,206.4,51.53713176]
[1759231469004,0.72,206.44,206.4,51.53713176]
[1759231469209,101.82,206.5,206.41,14.29559401]
[1759231469397,0.72,206.49,206.42,34.56]
[1759231469600,2.16262931,206.48,206.43,33.88]
[1759231469804,1.44262931,206.46,206.43,33.88]
[1759231469987,0.72,206.45,206.43,33.88]
[1759231470397,0.72,206.44,206.43,33.88]
[1759231470917,0.72,206.45,206.43,33.88]
[1759231472504,0.72,206.47,206.42,4.84449181]
[1759231472708,2.25633935,206.48,206.42,4.84449181]
[1759231472709,0.72,206.46,206.42,38.72449181]
[1759231472897,0.72,206.45,206.42,38.72449181]
[1759231475205,7.09943904,206.48,206.42,38.72449181]
[1759231475413,0.72,206.47,206.42,38.72449181]
[1759231475914,2.97633935,206.46,206.42,38.72449181]
[1759231476121,0.72,206.45,206.42,38.72449181]
[1759231477418,2.25633935,206.46,206.42,38.72449181]
[1759231477607,2.97633935,206.46,206.42,38.72449181]
[1759231477808,2.97633935,206.46,206.42,39.42449181]
[1759231479222,2.97633935,206.46,206.42,38.72449181]
[1759231479393,2.25633935,206.46,206.42,38.72449181]
[1759231479599,2.97633935,206.46,206.42,38.72449181]
[1759231480318,2.97633935,206.46,206.42,39.42449181]
[1759231481624,85.1428884,206.49,206.43,5.54404982]
[1759231481808,80.3,206.49,206.44,34.54]
[1759231482123,82.55633935,206.49,206.45,0.7]
[1759231482324,83.26633935,206.49,206.45,0.7]
[1759231483320,83.26633935,206.49,206.45,5.54368319]
[1759231483510,83.26633935,206.49,206.45,4.84368319]
[1759231483696,0.71,206.48,206.45,4.84368319]
[1759231483901,2.25633935,206.47,206.45,4.84368319]
[1759231484921,2.25633935,206.47,206.44,38.68402173]
[1759231485519,2.96633935,206.47,206.44,38.68402173]
[1759231486098,2.25633935,206.47,206.44,38.68402173]
[1759231487104,2.96633935,206.48,206.44,39.38402173]
[1759231488213,0.71,206.48,206.44,39.38402173]
[1759231488414,2.96633935,206.48,206.44,39.38402173]
[1759231489329,2.25633935,206.48,206.44,39.38402173]
[1759231489532,2.96633935,206.48,206.44,39.38402173]
[1759231490537,0.71,206.48,206.44,39.38402173]
[1759231490710,2.96633935,206.48,206.44,39.38402173]
[1759231492260,0.71,206.48,206.44,39.38402173]
[1759231492853,2.96633935,206.48,206.44,39.38402173]
[1759231493357,2.25633935,206.48,206.44,38.68402173]
[1759231493563,2.25633935,206.48,206.45,5.5436319]
[1759231493773,2.25633935,206.49,206.45,4.8436319]
[1759231493929,26.31053277,206.5,206.46,34.5]
[1759231494460,2.25633935,206.47,206.46,33.8]
[1759231494778,2.96633935,206.47,206.44,33.8]
[1759231495055,2.25633935,206.45,206.44,33.8]
[1759231495351,2.96633935,206.45,206.44,33.8]
[1759231496168,2.25633935,206.45,206.42,38.66444677]
[1759231496321,2.25633935,206.45,206.42,39.36444677]
[1759231496526,2.25633935,206.45,206.43,0.7]
[1759231497561,2.25633935,206.45,206.44,4.84402247]
[1759231497867,0.71,206.47,206.44,4.84402247]
[1759231497868,26.31053277,206.5,206.44,39.36402247]
[1759231498163,26.31053277,206.5,206.45,0.7]
[1759231498342,27.02053277,206.5,206.45,0.7]
[1759231498745,0.71,206.49,206.45,5.5435588]
[1759231499182,26.31053277,206.5,206.45,5.5435588]
[1759231499352,0.71,206.49,206.45,5.5435588]
[1759231499538,27.02053277,206.5,206.45,4.8435588]
[1759231499846,27.02053277,206.5,206.46,0.7]
[1759231499847,23.76633935,206.5,206.46,0.7]
[1759231500044,26.31053277,206.5,206.45,4.8435588]
[1759231500244,27.02053277,206.5,206.45,5.5435588]
[1759231500573,23.76633935,206.5,206.45,5.5435588]
[1759231500738,27.02053277,206.5,206.45,5.5435588]
[1759231500938,26.31053277,206.5,206.45,5.5435588]
[1759231501137,0.71,206.49,206.45,5.5435588]
[1759231501358,2.25633935,206.49,206.45,4.8435588]
[1759231501559,2.96633935,206.48,206.44,38.66396919]
[1759231502060,2.25633935,206.48,206.44,38.66396919]
[1759231502265,2.25633935,206.45,206.43,33.8]
[1759231502463,2.96633935,206.45,206.43,33.8]
[1759231503466,2.25633935,206.46,206.43,38.64418485]
[1759231504864,2.96633935,206.46,206.43,38.64418485]
[1759231507160,0.71,206.46,206.43,38.64418485]
[1759231507360,0.71,206.46,206.43,33.8]
[1759231507556,2.25633935,206.47,206.43,33.8]
[1759231507557,7.09966237,206.47,206.43,33.8]
[1759231507869,0.71,206.46,206.43,38.64421426]
[1759231509679,2.25633935,206.47,206.43,39.34421426]
[1759231509870,2.96633935,206.47,206.43,39.34421426]
[1759231510175,2.96633935,206.47,206.43,51.45485709]
[1759231510770,21.51,206.5,206.44,0.7]
[1759231510974,23.05633935,206.5,206.45,33.8]
[1759231511150,24.05731207,206.5,206.46,0.7]
[1759231511347,20.8,206.5,206.46,0.7]
[1759231511661,20.8,206.5,206.47,4.84331864]
[1759231511861,21.51,206.5,206.47,4.84331864]
[1759231513050,20.8,206.5,206.48,0.71]
[1759231513554,0.68,206.53,206.48,33.8]
[1759231513746,2.93633935,206.52,206.49,4.84284953]
[1759231513964,3.25731207,206.54,206.49,4.84284953]
[1759231514172,5.51365142,206.53,206.49,5.55284953]
[1759231514372,2.25633935,206.53,206.49,17.65997336]
[1759231514683,2.93633935,206.53,206.49,17.65997336]
[1759231515585,3.25731207,206.54,206.5,0.71]
[1759231515769,3.25731207,206.55,206.52,4.84214603]
[1759231516078,3.25731207,206.55,206.52,5.55214603]
[1759231516278,24.05731207,206.56,206.52,5.55214603]
[1759231516465,24.73731207,206.56,206.52,5.55214603]
[1759231516660,24.05731207,206.56,206.52,5.55214603]
[1759231516864,24.05731207,206.56,206.53,0.71]
[1759231517072,20.8,206.56,206.53,0.71]
[1759231517268,21.48,206.56,206.52,16.94751112]
[1759231517468,20.8,206.56,206.52,17.65751112]
[1759231517858,20.8,206.56,206.53,0.71]
[1759231518052,3.25731207,206.59,206.54,34.53]
[1759231518053,3.93731207,206.59,206.54,34.53]
[1759231518357,4.07248352,206.63,206.54,34.53]
[1759231518358,2.25633935,206.6,206.55,0.71]
[1759231518677,20.8,206.59,206.55,0.71]
[1759231518856,26.31365142,206.6,206.55,0.71]
[1759231519191,20.8,206.59,206.55,0.71]
[1759231519482,20.8,206.59,206.56,0.71]
[1759231519853,20.8,206.6,206.57,4.840974]
[1759231520053,0.68,206.59,206.57,4.840974]
[1759231520250,21.48,206.59,206.57,4.840974]
[1759231520679,20.8,206.6,206.57,4.840974]
[1759231520881,0.68,206.59,206.57,4.840974]
[1759231521178,21.48,206.59,206.57,4.840974]
[1759231521390,2.93633935,206.59,206.55,4.84144274]
[1759231521757,0.68,206.58,206.55,4.84144274]
[1759231521950,2.25633935,206.57,206.53,4.84169729]
[1759231522260,0.68,206.56,206.54,33.82]
[1759231522969,25.64073507,206.59,206.54,38.66166087]
[1759231523166,2.93633935,206.57,206.54,38.66166087]
[1759231523356,0.68,206.56,206.54,38.66166087]
[1759231523674,23.73633935,206.55,206.5,33.82]
[1759231523858,2.25633935,206.51,206.5,33.82]
[1759231524258,2.93633935,206.51,206.5,33.82]
[1759231524954,2.93633935,206.51,206.47,18.43891265]
[1759231525157,2.25633935,206.51,206.48,33.82]
[1759231525573,2.93633935,206.51,206.48,33.82]
[1759231526078,2.25633935,206.51,206.48,33.82]
[1759231526585,2.25633935,206.52,206.48,34.53]
[1759231526762,2.93633935,206.52,206.49,4.84284953]
[1759231530200,2.25633935,206.52,206.49,4.84284953]
[1759231530369,0.68,206.51,206.49,4.84284953]
[1759231533296,20.8,206.55,206.5,0.71]
[1759231533472,20.8,206.54,206.51,33.8]
[1759231533789,20.8,206.56,206.52,0.71]
[1759231533969,20.8,206.56,206.53,0.71]
[1759231534584,20.8,206.56,206.53,4.84191158]
[1759231534772,2.1225067,206.57,206.54,33.84]
[1759231535872,22.2425067,206.58,206.54,33.84]
[1759231536188,0.68,206.57,206.54,33.84]
[1759231536499,20.8,206.56,206.54,34.55]
[1759231536704,20.8,206.56,206.55,4.84144274]
[1759231536908,20.8,206.57,206.55,38.66144274]
[1759231537280,1.4425067,206.59,206.55,39.37144274]
[1759231537487,2.1225067,206.59,206.55,39.37144274]
[1759231537994,1.4425067,206.57,206.56,33.82]
[1759231538293,2.1225067,206.57,206.56,33.82]
[1759231539079,20.8,206.57,206.56,39.37120836]
[1759231539705,1.4425067,206.59,206.56,39.37120836]
[1759231539922,20.8,206.6,206.57,0.71]
[1759231540119,20.8,206.6,206.56,38.66120836]
[1759231540483,20.8,206.6,206.56,39.37120836]
[1759231540684,0.68,206.59,206.57,33.82]
[1759231541210,20.8,206.6,206.57,33.82]
[1759231541391,22.9225067,206.6,206.57,33.82]
[1759231542286,22.2425067,206.6,206.57,34.53]
[1759231542694,22.2425067,206.6,206.57,38.66077122]
[1759231542896,22.9625067,206.6,206.57,38.66077122]
[1759231544912,22.2425067,206.6,206.57,39.37077122]
[1759231545505,1.4425067,206.6,206.57,38.66077122]
[1759231545815,2.1625067,206.6,206.57,38.66077122]
[1759231546919,1.4425067,206.6,206.57,38.66077122]
[1759231547616,20.8,206.59,206.58,33.8]
[1759231547995,2.1625067,206.6,206.58,33.8]
[1759231548296,1.4425067,206.6,206.58,33.8]
[1759231548492,2.1625067,206.6,206.58,33.8]
[1759231548809,2.1625067,206.61,206.58,33.8]
[1759231549118,20.8,206.6,206.58,33.8]
[1759231549800,20.8,206.59,206.58,33.8]
[1759231550224,2.1625067,206.59,206.52,0.71]
[1759231550522,22.2425067,206.57,206.54,13.59559401]
[1759231550718,20.8,206.57,206.55,33.8]
[1759231550907,22.9625067,206.57,206.55,33.8]
[1759231551110,0.72,206.56,206.52,4.84192088]
[1759231551317,2.1625067,206.55,206.53,33.82]